fUST/lending_fUST_20241115
["ID","MTS","AMOUNT","RATE_DAILY","PERIOD"]
[342229182,1731601849196,-500.0,0.00016986,2]
[342229183,1731601849206,-500.0,0.00016986,2]
[342229184,1731601849215,-500.0,0.00016986,2]
[342229185,1731601849227,-500.0,0.00016986,2]
[342229186,1731601849236,-500.0,0.00016986,2]
[342229187,1731601849245,-500.0,0.00016986,2]
[342229188,1731601849255,-500.0,0.00016986,2]
[342229189,1731601849265,-553.63,0.00016986,2]
[342229190,1731601849274,-500.0,0.00016986,2]
[342229191,1731601849283,-309.45196189,0.00016986,2]
[342229192,1731601849293,-500.0,0.00016986,2]
[342229193,1731601849302,-500.0,0.00016986,2]
[342229194,1731601849311,-500.0,0.00016986,2]
[342229195,1731601849321,-558.88904711,0.00016986,2]
[342229196,1731601849331,-500.0,0.00016986,2]
[342229197,1731601849340,-500.0,0.00016986,2]
[342229198,1731601849349,-500.0,0.00016986,2]
[342229199,1731601849359,-1784.39,0.00016986,2]
[342229200,1731601849368,-500.0,0.00016986,2]
[342229201,1731601849377,-500.0,0.00016986,2]
[342229202,1731601849387,-504.30913051,0.00016986,2]
[342229203,1731601849397,-500.0,0.00016986,2]
[342229204,1731601849406,-500.0,0.00016986,2]
[342229205,1731601849416,-604.74,0.00016986,2]
[342229206,1731601849425,-500.0,0.00016986,2]
[342229207,1731601849435,-500.0,0.00016986,2]
[342229208,1731601849444,-500.0,0.00016986,2]
[342229209,1731601849453,-500.0,0.00016986,2]
[342229210,1731601849463,-500.0,0.00016986,2]
[342229211,1731601849475,-837.25,0.00016986,2]
[342229212,1731601849484,-500.0,0.00016986,2]
[342229213,1731601849493,-500.0,0.00016986,2]
[342229214,1731601849502,-983.5,0.00016986,2]
[342229215,1731601849511,-500.0,0.00016986,2]
[342229216,1731601849521,-500.0,0.00016986,2]
[342229217,1731601849530,-500.0,0.00016986,2]
[342229218,1731601849540,-1721.84,0.00016986,2]
[342229219,1731601849549,-500.0,0.00016986,2]
[342229220,1731601849558,-538.6,0.00016986,2]
[342229221,1731601849567,-537.19,0.00016986,2]
[342229222,1731601849576,-500.0,0.00016986,2]
[342229223,1731601849586,-500.0,0.00016986,2]
[342229224,1731601849596,-500.0,0.00016986,2]
[342229225,1731601849606,-184.92990615,0.00016986,2]
[342229226,1731601849615,-500.0,0.00016986,2]
[342229227,1731601849625,-500.0,0.00016986,2]
[342229228,1731601849635,-500.0,0.00016986,2]
[342229229,1731601849645,-500.0,0.00016986,2]
[342229230,1731601849655,-500.0,0.00016986,2]
[342229231,1731601849665,-1399.95,0.00016986,2]
[342229232,1731601849674,-500.0,0.00016986,2]
[342229233,1731601849684,-635.83,0.00016986,2]
[342229234,1731601849694,-1119.36,0.00016986,2]
[342229235,1731601849703,-475.36214997,0.00016986,2]
[342229236,1731601849713,-500.0,0.00016986,2]
[342229237,1731601849725,-500.0,0.00016986,2]
[342229238,1731601849736,-582.9,0.00016986,2]
[342229239,1731601849746,-500.0,0.00016986,2]
[342229240,1731601849755,-500.0,0.00016986,2]
[342229241,1731601849764,-500.0,0.00016986,2]
[342229242,1731601849774,-500.0,0.00016986,2]
[342229243,1731601849783,-581.06,0.00016986,2]
[342229244,1731601849792,-500.0,0.00016986,2]
[342229245,1731601849801,-500.0,0.00016986,2]
[342229246,1731601849811,-500.0,0.00016986,2]
[342229247,1731601849820,-1285.85,0.00016986,2]
[342229248,1731601849829,-500.0,0.00016986,2]
[342229249,1731601849838,-517.91,0.00016986,2]
[342229250,1731601849847,-512.24,0.00016986,2]
[342229251,1731601849856,-500.0,0.00016986,2]
[342229252,1731601849865,-500.0,0.00016986,2]
[342229253,1731601849875,-500.0,0.00016986,2]
[342229254,1731601849884,-500.0,0.00016986,2]
[342229255,1731601849893,-500.0,0.00016986,2]
[342229256,1731601849901,-16329.18,0.00016986,2]
[342229257,1731601849911,-500.0,0.00016986,2]
[342229258,1731601849920,-500.0,0.00016986,2]
[342229259,1731601849929,-1551.35,0.00016986,2]
[342229260,1731601849938,-500.0,0.00016986,2]
[342229261,1731601849948,-1294.91,0.00016986,2]
[342229262,1731601849957,-500.0,0.00016986,2]
[342229263,1731601849972,-500.0,0.00016986,2]
[342229264,1731601849981,-500.0,0.00016986,2]
[342229265,1731601849990,-500.0,0.00016986,2]
[342229266,1731601849999,-558.85,0.00016986,2]
[342229267,1731601850011,-555.35,0.00016986,2]
[342229268,1731601850020,-500.0,0.00016986,2]
[342229269,1731601850029,-500.0,0.00016986,2]
[342229270,1731601850040,-500.0,0.00016986,2]
[342229271,1731601850049,-508.48,0.00016986,2]
[342229272,1731601850058,-500.0,0.00016986,2]
[342229273,1731601850067,-709.33,0.00016986,2]
[342229274,1731601850077,-500.0,0.00016986,2]
[342229275,1731601850086,-1042.02,0.00016986,2]
[342229276,1731601850094,-500.0,0.00016986,2]
[342229277,1731601850103,-500.0,0.00016986,2]
[342229278,1731601850112,-500.0,0.00016986,2]
[342229279,1731601850122,-372.75000211,0.00016986,2]
[342229280,1731601850131,-655.49,0.00016986,2]
[342229281,1731601850141,-500.0,0.00016986,2]
[342229282,1731601850150,-1869.52,0.00016986,2]
[342229283,1731601850159,-500.0,0.00016986,2]
[342229284,1731601850168,-500.0,0.00016986,2]
[342229285,1731601850177,-679.31,0.00016986,2]
[342229286,1731601850186,-500.0,0.00016986,2]
[342229287,1731601850196,-1104.22,0.00016986,2]
[342229288,1731601850205,-500.0,0.00016986,2]
[342229289,1731601850215,-500.0,0.00016986,2]
[342229290,1731601850226,-500.0,0.00016986,2]
[342229291,1731601850235,-500.0,0.00016986,2]
[342229292,1731601850244,-553.63,0.00016986,2]
[342229293,1731601850253,-500.0,0.00016986,2]
[342229294,1731601850262,-335.95532418,0.00016986,2]
[342229295,1731601850271,-2791.11,0.00016986,2]
[342229296,1731601850280,-500.0,0.00016986,2]
[342229297,1731601850289,-695.87,0.00016986,2]
[342229298,1731601850299,-694.34,0.00016986,2]
[342229299,1731601850310,-500.0,0.00016986,2]
[342229300,1731601850320,-500.0,0.00016986,2]
[342229301,1731601850330,-500.0,0.00016986,2]
[342229302,1731601850340,-527.75,0.00016986,2]
[342229303,1731601850354,-500.0,0.00016986,2]
[342229304,1731601850363,-500.0,0.00016986,2]
[342229305,1731601850373,-5539.72,0.00016986,2]
[342229306,1731601850382,-585.99,0.00016986,2]
[342229307,1731601850391,-527.09247395,0.00016986,2]
[342229308,1731601850400,-500.0,0.00016986,2]
[342229309,1731601850409,-500.0,0.00016986,2]
[342229310,1731601850418,-3085.69,0.00016986,2]
[342229311,1731601850427,-315.10147234,0.00016986,2]
[342229312,1731601850437,-500.0,0.00016986,2]
[342229313,1731601850446,-500.27,0.00016986,2]
[342229314,1731601850455,-500.0,0.00016986,2]
[342229315,1731601850464,-500.0,0.00016986,2]
[342229316,1731601850475,-528.9570977,0.00016986,2]
[342229317,1731601850484,-536.81013622,0.00016986,2]
[342229318,1731601850494,-500.0,0.00016986,2]
[342229319,1731601850504,-500.0,0.00016986,2]
[342229320,1731601850513,-2975.49,0.00016986,2]
[342229321,1731601850523,-500.0,0.00016986,2]
[342229322,1731601850532,-540.54940375,0.00016986,2]
[342229323,1731601850541,-500.0,0.00016986,2]
[342229324,1731601850550,-603.45,0.00016986,2]
[342229325,1731601850560,-1825.0,0.00016986,2]
[342229326,1731601850570,-500.0,0.00016986,2]
[342229327,1731601850579,-536.57112216,0.00016986,2]
[342229328,1731601850588,-500.0,0.00016986,2]
[342229329,1731601850597,-541.52133056,0.00016986,2]
[342229330,1731601850607,-4262.58,0.00016986,2]
[342229331,1731601850616,-500.0,0.00016986,2]
[342229332,1731601850625,-712.03,0.00016986,2]
[342229333,1731601850634,-500.0,0.00016986,2]
[342229334,1731601850644,-500.0,0.00016986,2]
[342229335,1731601850653,-500.0,0.00016986,2]
[342229336,1731601850662,-562.53,0.00016986,2]
[342229337,1731601850672,-335.94720134,0.00016986,2]
[342229338,1731601850681,-500.0,0.00016986,2]
[342229339,1731601850690,-500.0,0.00016986,2]
[342229340,1731601850701,-500.0,0.00016986,2]
[342229341,1731601850710,-500.0,0.00016986,2]
[342229342,1731601850719,-500.0,0.00016986,2]
[342229343,1731601850732,-500.0,0.00016986,2]
[342229344,1731601850742,-500.0,0.00016986,2]
[342229345,1731601850752,-500.0,0.00016986,2]
[342229346,1731601850761,-398.56962029,0.00016986,2]
[342229347,1731601850771,-5760.11,0.00016986,2]
[342229348,1731601850779,-695.77,0.00016986,2]
[342229349,1731601850789,-500.0,0.00016986,2]
[342229350,1731601850798,-1000.0,0.00017021,2]
[342229351,1731601850807,-718.27556139,0.00017021,2]
[342229352,1731601850816,-604.61772866,0.0001716,2]
[342229353,1731601850825,-150.112233,0.000172,2]
[342229354,1731601850835,-500.0,0.0001726,2]
[342229355,1731601850844,-500.0,0.0001726,2]
[342229356,1731601850854,-500.0,0.0001726,2]
[342229357,1731601850865,-500.0,0.0001726,2]
[342229358,1731601850879,-500.0,0.0001726,2]
[342229359,1731601850888,-586.95618646,0.0001726,2]
[342229360,1731601850898,-500.0,0.0001726,2]
[342229361,1731601850907,-500.0,0.0001726,2]
[342229362,1731601850916,-500.0,0.0001726,2]
[342229363,1731601850926,-465.66538131,0.0001726,2]
[342229364,1731601850935,-352.98239717,0.0001726,2]
[342229365,1731601850945,-500.0,0.0001726,2]
[342229366,1731601850955,-500.0,0.0001726,2]
[342229367,1731601850967,-500.0,0.0001726,2]
[342229368,1731601850978,-500.0,0.0001726,2]
[342229369,1731601850987,-500.0,0.0001726,2]
[342229370,1731601850997,-500.0,0.0001726,2]
[342229371,1731601851007,-557.45,0.0001726,2]
[342229372,1731601851017,-500.0,0.0001726,2]
[342229373,1731601851027,-500.0,0.0001726,2]
[342229374,1731601851036,-512.51137563,0.0001726,2]
[342229375,1731601851047,-500.0,0.0001726,2]
[342229376,1731601851056,-500.0,0.0001726,2]
[342229377,1731601851066,-500.0,0.0001726,2]
[342229378,1731601851075,-500.0,0.0001726,2]
[342229379,1731601851086,-500.0,0.0001726,2]
[342229380,1731601851095,-155.63603417,0.0001726,2]
[342229381,1731601851105,-500.0,0.0001726,2]
[342229382,1731601851115,-862.24,0.0001726,2]
[342229383,1731601851124,-500.0,0.0001726,2]
[342229384,1731601851134,-657.92,0.0001726,2]
[342229385,1731601851143,-500.0,0.0001726,2]
[342229386,1731601851153,-574.38,0.0001726,2]
[342229387,1731601851162,-500.0,0.0001726,2]
[342229388,1731601851172,-500.0,0.0001726,2]
[342229389,1731601851181,-500.0,0.0001726,2]
[342229390,1731601851191,-500.0,0.0001726,2]
[342229391,1731601851200,-500.0,0.0001726,2]
[342229392,1731601851210,-500.0,0.0001726,2]
[342229393,1731601851219,-500.0,0.0001726,2]
[342229394,1731601851234,-500.0,0.0001726,2]
[342229395,1731601851243,-704.45,0.0001726,2]
[342229396,1731601851253,-500.0,0.0001726,2]
[342229397,1731601851262,-500.0,0.0001726,2]
[342229398,1731601851273,-500.0,0.0001726,2]
[342229399,1731601851283,-500.0,0.0001726,2]
[342229400,1731601851293,-500.0,0.0001726,2]
[342229401,1731601851303,-500.0,0.0001726,2]
[342229402,1731601851313,-555.33,0.0001726,2]
[342229403,1731601851323,-582.2,0.0001726,2]
[342229404,1731601851334,-500.0,0.0001726,2]
[342229405,1731601851344,-500.0,0.0001726,2]
[342229406,1731601851354,-560.95,0.0001726,2]
[342229407,1731601851365,-500.0,0.0001726,2]
[342229408,1731601851374,-500.0,0.0001726,2]
[342229409,1731601851384,-221.29328386,0.0001726,2]
[342229410,1731601851393,-500.0,0.0001726,2]
[342229411,1731601851402,-735.74,0.0001726,2]
[342229412,1731601851412,-500.0,0.0001726,2]
[342229413,1731601851422,-500.0,0.0001726,2]
[342229414,1731601851431,-500.0,0.0001726,2]
[342229415,1731601851440,-500.0,0.0001726,2]
[342229416,1731601851449,-544.53,0.0001726,2]
[342229417,1731601851458,-632.43,0.0001726,2]
[342229418,1731601851467,-500.0,0.0001726,2]
[342229419,1731601851482,-500.0,0.0001726,2]
[342229420,1731601851491,-500.0,0.0001726,2]
[342229421,1731601851501,-523.42,0.0001726,2]
[342229422,1731601851510,-500.0,0.0001726,2]
[342229423,1731601851520,-500.0,0.0001726,2]
[342229424,1731601851530,-500.0,0.0001726,2]
[342229425,1731601851539,-500.0,0.0001726,2]
[342229426,1731601851549,-500.0,0.0001726,2]
[342229427,1731601851559,-500.0,0.0001726,2]
[342229428,1731601851568,-553.63,0.0001726,2]
[342229429,1731601851578,-500.0,0.0001726,2]
[342229430,1731601851587,-500.0,0.0001726,2]
[342229431,1731601851597,-500.0,0.0001726,2]
[342229432,1731601851606,-500.0,0.0001726,2]
[342229433,1731601851616,-500.0,0.0001726,2]
[342229434,1731601851627,-1784.39,0.0001726,2]
[342229435,1731601851636,-500.0,0.0001726,2]
[342229436,1731601851645,-500.0,0.0001726,2]
[342229437,1731601851655,-500.0,0.0001726,2]
[342229438,1731601851665,-604.74,0.0001726,2]
[342229439,1731601851674,-500.0,0.0001726,2]
[342229440,1731601851684,-500.0,0.0001726,2]
[342229441,1731601851693,-500.0,0.0001726,2]
[342229442,1731601851702,-500.0,0.0001726,2]
[342229443,1731601851711,-500.0,0.0001726,2]
[342229444,1731601851721,-837.25,0.0001726,2]
[342229445,1731601851734,-500.0,0.0001726,2]
[342229446,1731601851744,-983.5,0.0001726,2]
[342229447,1731601851753,-500.0,0.0001726,2]
[342229448,1731601851765,-500.0,0.0001726,2]
[342229449,1731601851774,-500.0,0.0001726,2]
[342229450,1731601851784,-1721.84,0.0001726,2]
[342229451,1731601851794,-500.0,0.0001726,2]
[342229452,1731601851803,-538.6,0.0001726,2]
[342229453,1731601851814,-537.19,0.0001726,2]
[342229454,1731601851823,-500.0,0.0001726,2]
[342229455,1731601851832,-500.0,0.0001726,2]
[342229456,1731601851842,-500.0,0.0001726,2]
[342229457,1731601851851,-500.0,0.0001726,2]
[342229458,1731601851861,-500.0,0.0001726,2]
[342229459,1731601851870,-1399.95,0.0001726,2]
[342229460,1731601851880,-500.0,0.0001726,2]
[342229461,1731601851889,-635.83,0.0001726,2]
[342229462,1731601851899,-1119.36,0.0001726,2]
[342229463,1731601851908,-500.0,0.0001726,2]
[342229464,1731601851918,-500.0,0.0001726,2]
[342229465,1731601851927,-582.9,0.0001726,2]
[342229466,1731601851937,-500.0,0.0001726,2]
[342229467,1731601851946,-500.0,0.0001726,2]
[342229468,1731601851955,-500.0,0.0001726,2]
[342229469,1731601851970,-581.06,0.0001726,2]
[342229470,1731601851984,-500.0,0.0001726,2]
[342229471,1731601851993,-500.0,0.0001726,2]
[342229472,1731601852003,-1285.85,0.0001726,2]
[342229473,1731601852012,-500.0,0.0001726,2]
[342229474,1731601852022,-517.91,0.0001726,2]
[342229475,1731601852032,-512.24,0.0001726,2]
[342229476,1731601852041,-345.60590397,0.0001726,2]
[342229477,1731601852052,-500.0,0.0001726,2]
[342229478,1731601852062,-500.0,0.0001726,2]
[342229479,1731601852071,-500.0,0.0001726,2]
[342229480,1731601852081,-16329.18,0.0001726,2]
[342229481,1731601852208,-500.0,0.0001726,2]
[342229482,1731601852218,-500.0,0.0001726,2]
[342229483,1731601852231,-1551.35,0.0001726,2]
[342229484,1731601852240,-500.0,0.0001726,2]
[342229485,1731601852249,-1294.91,0.0001726,2]
[342229486,1731601852259,-500.0,0.0001726,2]
[342229487,1731601852269,-229.439454,0.0001726,2]
[342229488,1731601852278,-289.83183562,0.0001726,2]
[342229489,1731601852288,-500.0,0.0001726,2]
[342229490,1731601852298,-229.439454,0.0001726,2]
[342229491,1731601852307,-558.85,0.0001726,2]
[342229492,1731601852316,-555.35,0.0001726,2]
[342229493,1731601852325,-500.0,0.0001726,2]
[342229494,1731601852335,-500.0,0.0001726,2]
[342229495,1731601852344,-508.48,0.0001726,2]
[342229496,1731601852353,-500.0,0.0001726,2]
[342229497,1731601852363,-709.33,0.0001726,2]
[342229498,1731601852372,-500.0,0.0001726,2]
[342229499,1731601852381,-1042.02,0.0001726,2]
[342229500,1731601852391,-500.0,0.0001726,2]
[342229501,1731601852400,-500.0,0.0001726,2]
[342229502,1731601852409,-655.49,0.0001726,2]
[342229503,1731601852418,-500.0,0.0001726,2]
[342229504,1731601852427,-1869.52,0.0001726,2]
[342229505,1731601852437,-500.0,0.0001726,2]
[342229506,1731601852446,-500.0,0.0001726,2]
[342229507,1731601852455,-679.31,0.0001726,2]
[342229508,1731601852465,-1104.22,0.0001726,2]
[342229509,1731601852475,-500.0,0.0001726,2]
[342229510,1731601852485,-410.86011251,0.0001726,2]
[342229511,1731601852495,-500.0,0.0001726,2]
[342229512,1731601852504,-553.63,0.0001726,2]
[342229513,1731601852513,-2791.11,0.0001726,2]
[342229514,1731601852523,-151.0,0.0001726,2]
[342229515,1731601852532,-191.890136,0.0001726,2]
[342229516,1731601852542,-695.87,0.0001726,2]
[342229517,1731601852551,-500.0,0.0001726,2]
[342229518,1731601852560,-694.34,0.0001726,2]
[342229519,1731601852569,-500.0,0.0001726,2]
[342229520,1731601852579,-500.0,0.0001726,2]
[342229521,1731601852587,-527.75,0.0001726,2]
[342229522,1731601852597,-500.0,0.0001726,2]
[342229523,1731601852606,-500.0,0.0001726,2]
[342229524,1731601852615,-5539.72,0.0001726,2]
[342229525,1731601852624,-585.99,0.0001726,2]
[342229526,1731601852633,-500.0,0.0001726,2]
[342229527,1731601852643,-500.0,0.0001726,2]
[342229528,1731601852653,-3085.69,0.0001726,2]
[342229529,1731601852662,-500.0,0.0001726,2]
[342229530,1731601852671,-500.27,0.0001726,2]
[342229531,1731601852681,-500.0,0.0001726,2]
[342229532,1731601852691,-500.0,0.0001726,2]
[342229533,1731601852700,-500.0,0.0001726,2]
[342229534,1731601852709,-500.0,0.0001726,2]
[342229535,1731601852718,-2975.49,0.0001726,2]
[342229536,1731601852731,-500.0,0.0001726,2]
[342229537,1731601852740,-500.0,0.0001726,2]
[342229538,1731601852749,-603.45,0.0001726,2]
[342229539,1731601852759,-644.54048788,0.0001726,2]
[342229540,1731601852768,-500.0,0.0001726,2]
[342229541,1731601852777,-1825.0,0.0001726,2]
[342229542,1731601852787,-4262.58,0.0001726,2]
[342229543,1731601852796,-712.03,0.0001726,2]
[342229544,1731601852805,-500.0,0.0001726,2]
[342229545,1731601852815,-500.0,0.0001726,2]
[342229546,1731601852824,-562.53,0.0001726,2]
[342229547,1731601852834,-500.0,0.0001726,2]
[342229548,1731601852843,-500.0,0.0001726,2]
[342229549,1731601852852,-500.0,0.0001726,2]
[342229550,1731601852861,-500.0,0.0001726,2]
[342229551,1731601852870,-507.1112677,0.0001726,2]
[342229552,1731601852880,-500.0,0.0001726,2]
[342229553,1731601852889,-500.0,0.0001726,2]
[342229554,1731601852899,-5760.11,0.0001726,2]
[342229555,1731601852908,-695.77,0.0001726,2]
[342229556,1731601852917,-773.415055,0.00017282,2]
[342229557,1731601852926,-773.415055,0.00017282,2]
[342229558,1731601852935,-220.13909,0.00017282,2]
[342229559,1731601852944,-230.387113,0.00017282,2]
[342229560,1731601852953,-230.387113,0.00017282,2]
[342229561,1731601852964,-348.560765,0.00017282,2]
[342229562,1731601852974,-348.560765,0.00017282,2]
[342229563,1731601852985,-561.68773349,0.00017282,2]
[342229564,1731601852994,-1000.0,0.00017321,2]
[342229565,1731601853004,-150.112233,0.000174,2]
[342229566,1731601853013,-320740.7313325,0.000175,2]
[342229567,1731601853175,-23968.51079872,0.000175,2]
[342229568,1731601853190,-263.251,0.000175,2]
[342229569,1731601853517,-500.0,0.00016438,2]
[342229570,1731601853526,-500.0,0.00016712,2]
[342229571,1731601853537,-500.0,0.00016712,2]
[342229572,1731601853546,-500.0,0.00016986,2]
[342229573,1731601853555,-500.0,0.00016986,2]
[342229574,1731601853565,-500.0,0.00016986,2]
[342229575,1731601853574,-500.0,0.0001726,2]
[342229576,1731601853583,-500.0,0.0001726,2]
[342229577,1731601853592,-500.0,0.0001726,2]
[342229578,1731601853602,-90974.22136286,0.000175,2]
[342229579,1731601853613,-289476.29712602,0.000175,2]
[342229580,1731601853654,-367042.89704984,0.000175,2]
[342229581,1731601875149,7289.0748717,0.0001,2]
[342229582,1731602105755,-209.5178788,0.00015786,2]
[342229583,1731602105776,-1000.0,0.00016338,2]
[342229584,1731602105797,-300.0,0.00016437,2]
[342229585,1731602105818,-300.0,0.00016437,2]
[342229586,1731602105839,-500.0,0.00016438,2]
[342229587,1731602105860,-500.0,0.00016438,2]
[342229588,1731602105881,-554.18940138,0.00016438,2]
[342229589,1731602105901,-500.0,0.00016438,2]
[342229590,1731602105923,-500.0,0.00016438,2]
[342229591,1731602105950,-503.28203367,0.00016438,2]
[342229592,1731602105971,-500.0,0.00016438,2]
[342229593,1731602105992,-500.0,0.00016438,2]
[342229594,1731602106014,-500.0,0.00016438,2]
[342229595,1731602106038,-500.0,0.00016438,2]
[342229596,1731602106062,-500.0,0.00016438,2]
[342229597,1731602106084,-570.84,0.00016438,2]
[342229598,1731602106107,-641.61,0.00016438,2]
[342229599,1731602106129,-529.37004356,0.00016438,2]
[342229600,1731602106151,-657.23,0.00016438,2]
[342229601,1731602106172,-500.88538668,0.00016438,2]
[342229602,1731602106196,-500.0,0.00016438,2]
[342229603,1731602106216,-500.0,0.00016438,2]
[342229604,1731602106238,-500.0,0.00016438,2]
[342229605,1731602106259,-500.0,0.00016438,2]
[342229606,1731602106280,-642.02,0.00016438,2]
[342229607,1731602106301,-500.0,0.00016438,2]
[342229608,1731602106322,-643.39,0.00016438,2]
[342229609,1731602106344,-500.0,0.00016438,2]
[342229610,1731602106365,-1679.33,0.00016438,2]
[342229611,1731602106389,-500.0,0.00016438,2]
[342229612,1731602106410,-500.0,0.00016438,2]
[342229613,1731602106433,-514.43092139,0.00016438,2]
[342229614,1731602106455,-1402.06,0.00016438,2]
[342229615,1731602106476,-500.0,0.00016438,2]
[342229616,1731602106499,-500.0,0.00016438,2]
[342229617,1731602106520,-507.9856206,0.00016438,2]
[342229618,1731602106542,-500.0,0.00016438,2]
[342229619,1731602106564,-500.0,0.00016438,2]
[342229620,1731602106585,-500.0,0.00016438,2]
[342229621,1731602106606,-500.0,0.00016438,2]
[342229622,1731602106627,-500.0,0.00016438,2]
[342229623,1731602106649,-500.0,0.00016438,2]
[342229624,1731602106670,-500.0,0.00016438,2]
[342229625,1731602106693,-500.0,0.00016438,2]
[342229626,1731602106713,-609.92,0.00016438,2]
[342229627,1731602106735,-500.0,0.00016438,2]
[342229628,1731602106756,-644.49,0.00016438,2]
[342229629,1731602106777,-510.44005014,0.00016438,2]
[342229630,1731602106797,-500.0,0.00016438,2]
[342229631,1731602106818,-748.38,0.00016438,2]
[342229632,1731602106839,-200.0,0.00016438,2]
[342229633,1731602106859,-769.72,0.00016438,2]
[342229634,1731602106881,-500.0,0.00016438,2]
[342229635,1731602106902,-500.0,0.00016438,2]
[342229636,1731602106923,-500.0,0.00016438,2]
[342229637,1731602106947,-699.58,0.00016438,2]
[342229638,1731602106968,-500.0,0.00016438,2]
[342229639,1731602106988,-500.0,0.00016438,2]
[342229640,1731602107010,-516.49,0.00016438,2]
[342229641,1731602107037,-500.0,0.00016438,2]
[342229642,1731602107058,-500.0,0.00016438,2]
[342229643,1731602107081,-500.0,0.00016438,2]
[342229644,1731602107113,-500.0,0.00016438,2]
[342229645,1731602107137,-500.0,0.00016438,2]
[342229646,1731602107160,-749.83,0.00016438,2]
[342229647,1731602107184,-647.01,0.00016438,2]
[342229648,1731602107207,-500.0,0.00016438,2]
[342229649,1731602107228,-500.0,0.00016438,2]
[342229650,1731602107249,-500.0,0.00016438,2]
[342229651,1731602107269,-500.0,0.00016438,2]
[342229652,1731602107290,-500.0,0.00016438,2]
[342229653,1731602107311,-700.61,0.00016438,2]
[342229654,1731602107332,-500.0,0.00016438,2]
[342229655,1731602107352,-500.0,0.00016438,2]
[342229656,1731602107374,-2179.65,0.00016438,2]
[342229657,1731602107394,-191.58054379,0.00016438,2]
[342229658,1731602107415,-1000.0,0.00016438,2]
[342229659,1731602107440,-500.0,0.00016438,2]
[342229660,1731602107462,-500.0,0.00016438,2]
[342229661,1731602107482,-507.27415853,0.00016438,2]
[342229662,1731602107502,-500.0,0.00016438,2]
[342229663,1731602107523,-517.17703323,0.00016438,2]
[342229664,1731602107543,-500.0,0.00016438,2]
[342229665,1731602107564,-500.0,0.00016438,2]
[342229666,1731602107585,-500.0,0.00016438,2]
[342229667,1731602107606,-500.0,0.00016438,2]
[342229668,1731602107627,-500.0,0.00016438,2]
[342229669,1731602107648,-500.0,0.00016438,2]
[342229670,1731602107669,-904.7,0.00016438,2]
[342229671,1731602107693,-500.0,0.00016438,2]
[342229672,1731602107713,-500.0,0.00016438,2]
[342229673,1731602107735,-500.0,0.00016438,2]
[342229674,1731602107755,-500.0,0.00016438,2]
[342229675,1731602107776,-1309.03,0.00016438,2]
[342229676,1731602107798,-500.0,0.00016438,2]
[342229677,1731602107819,-500.0,0.00016438,2]
[342229678,1731602107840,-500.0,0.00016438,2]
[342229679,1731602107861,-635.49,0.00016438,2]
[342229680,1731602107882,-500.0,0.00016438,2]
[342229681,1731602107902,-500.0,0.00016438,2]